Cogmind - Beta 13 X1 @@@ ROGUE MODE // 2023.06.26 @ 00:51:15 Player: maxwell Result: Destroyed by NI-C7L(R) with Subdweller Laser Performance ------------- Evolutions (0) 0 Regions Visited (3) 600 Robots Destroyed (31) 155 Value Destroyed (827) 827 Prototype IDs (0) 0 Alien Tech Used (0) 0 Bonus (-25) -25 TOTAL SCORE: 1557 Bonus ------- Friendly Fire -25 Cogmind --------- Core Integrity 0/250 Matter 227/300 Energy 170/170 System Corruption 0% Temperature Cool (6) Movement Treading (240) Ox1 Location -10/Subcaves Parts ------- > --- POWER (1) -------- Makeshift Power Source > --- PROPULSION (2) --- Light Treads Armored Wheel > --- UTILITY (2) ------ Large Storage Unit Hardened Light Armor Plating > --- WEAPON (2) ------- Subdweller Machine Gun Subdweller Machine Gun > --- INVENTORY (15) --- Armored Wheel Armored Wheel Armored Wheel Improved Heat Sink Subdweller Optics Experimental Sensor Array Hardened Light Armor Plating Hardened Light Armor Plating Scrap Shield Hacking Suite Subdweller Machine Gun Grenade Launcher Maul Peak State ------------ > --- POWER ------------ Makeshift Power Source > --- PROPULSION ------- Light Treads Armored Wheel > --- UTILITY ---------- Large Storage Unit Hardened Light Armor Plating > --- WEAPON ----------- Subdweller Machine Gun Subdweller Machine Gun > --- INVENTORY -------- Armored Wheel Armored Wheel Armored Wheel Improved Heat Sink Subdweller Optics Experimental Sensor Array Hardened Light Armor Plating Hardened Light Armor Plating Scrap Shield Hacking Suite Subdweller Machine Gun Grenade Launcher Maul [Rating: 17] Favorites ----------- Power Ion Engine Engine Ion Engine Propulsion Light Treads Treads Light Treads Leg Aluminum Leg Wheel Armored Wheel Utility Large Storage Unit Device Improved Heat Sink Storage Large Storage Unit Protection Hardened Light Armor Plating Weapon Particle Cannon Energy Gun Small Laser Energy Cannon Particle Cannon Ballistic Gun Subdweller Machine Gun Launcher Grenade Launcher Slashing Weapon Mining Claw Build | -11 -10 -10 -10 ------- Run | Jun Mat Min Sub Slots Evolved . | . . . . Power . | . . . . Propulsion . | . . . . Utility . | . . . . Weapon . | . . . . Parts Attached 43 | . 31 . 12 Power 4 | . 1 . 3 Engine 4 | . 1 . 3 Core . | . . . . Reactor . | . . . . Propulsion 9 | . 7 . 2 Treads 8 | . 7 . 1 Leg . | . . . . Wheel 1 | . . . 1 Hover . | . . . . Flight . | . . . . Utility 9 | . 8 . 1 Device 1 | . 1 . . Storage 3 | . 3 . . Processor . | . . . . Hackware . | . . . . Protection 5 | . 4 . 1 Artifact . | . . . . Weapon 21 | . 15 . 6 Energy Gun 3 | . 3 . . Energy Cannon 5 | . 4 . 1 Ballistic Gun 8 | . 4 . 4 Ballistic Cannon . | . . . . Launcher 3 | . 2 . 1 Special Weapon . | . . . . Impact Weapon . | . . . . Slashing Weapon 2 | . 2 . . Piercing Weapon . | . . . . Special Melee Weapon . | . . . . Unidentified Prototypes . | . . . . Parts Lost 7 | . 4 . 3 Power 1 | . . . 1 Propulsion 3 | . 1 . 2 Utility 1 | . 1 . . Weapon 2 | . 2 . . Highest Loss Streak 2 | . 2 . 2 To Critical Strikes . | . . . . Average Slot Usage (%) 98 | . 99 100 97 Engine 13 | . 14 14 13 Treads 24 | . 22 28 24 Leg 2 | . 5 . . Device 4 | . . 14 1 Storage 16 | . 19 14 14 Protection 7 | . 7 . 12 Energy Cannon 9 | . 3 28 3 Ballistic Gun 17 | . 20 . 24 Naked Turns . | . . . . Heaviest Build 38 | 13 38 34 38 Greatest Support 40 | 20 40 40 40 Greatest Overweight (x) 3 | . 1 . 3 Average Overweight (x) . | . . . . Largest Inventory Capacity 15 | . 15 15 15 Average Capacity 14 | . 14 15 15 Most Carried 15 | . 15 15 15 Average Carried 13 | . 10 15 14 Final Capacity 15 | 8 15 15 15 Final Carried 15 | 6 15 15 14 Class Distribution -------------------- 68% | Mutant 31% | Subdweller-Mutant Dominant Class ---------------- Mutant | -10/Materials Mutant | -10/Mines Subdweller-Mutant | -10/Subcaves Resources | -11 -10 -10 -10 ----------- Run | Jun Mat Min Sub Matter Collected 994 | 200 540 39 215 Remotely . | . . . . Salvage Created 881 | . 669 . 212 Parts 57 | . 46 . 11 Haulers Intercepted 2 | . 2 . . Recyclers Shooed . | . . . . Parts Field Recycled . | . . . . Retrieved Matter . | . . . . Parts Self-Destructed 5 | . . . 5 Prevented . | . . . . Kills | -11 -10 -10 -10 ------- Run | Jun Mat Min Sub Combat Hostiles Destroyed 25 | . 18 . 7 Guns 17 | . 13 . 4 Cannons 2 | . 1 . 1 AOE 6 | . 4 . 2 Classes Destroyed 8 | . 6 . 2 Worker 1 | . 1 . . Hauler 2 | . 2 . . Operator 2 | . 2 . . Watcher 1 | . 1 . . Swarmer 7 | . 6 . 1 Grunt 12 | . 12 . . Artisan 1 | . . . 1 Subdweller 6 | . . . 6 Best Kill Streak 6 | . 6 . 3 Combat Bots Only 5 | . 5 . 3 Max Kills in Single Turn 3 | . 3 . 2 Gunslinging . | . . . . Exploded 2 | . 2 . 2 Melee . | . . . . Uniques/NPCs Destroyed . | . . . . Combat | -11 -10 -10 -10 -------- Run | Jun Mat Min Sub Damage Taken 1499 | . 836 . 663 Core 262 | . 150 . 112 Absorbed by Shields . | . . . . Redirected to Shielding 17 | . 17 . . Core Remaining (%) 100 | 100 . . . Volleys Fired 116 | . 76 . 40 Largest 2 | . 2 . 2 Hottest 136 | . 136 . 136 Shots Fired 219 | . 142 . 77 Gun 182 | . 124 . 58 Cannon 24 | . 8 . 16 Launcher 13 | . 10 . 3 Special . | . . . . Kinetic 173 | . 115 . 58 Thermal 32 | . 16 . 16 Explosive 13 | . 10 . 3 Electromagnetic 1 | . 1 . . Robot Hit Streak 13 | . 12 . 13 Robot Miss Streak 4 | . 3 . 4 Penetration Max . | . . . . Secondary Targets 2 | . 2 . . Max Gunslinging Chain 1 | . 1 . . Shots Hit Robots 131 | . 93 . 38 Core Hits 59 | . 43 1 15 Critical Kills 2 | . . . 2 Critical Parts Destroyed . | . . . . Critical Strikes 2 | . . . 2 Destroy 2 | . . . 2 Melee Attacks 10 | . 10 . . Impact . | . . . . Slashing 10 | . 10 . . Piercing . | . . . . Sneak Attacks . | . . . . Combat Hostiles . | . . . . Follow-up Attacks . | . . . . Damage Inflicted 2761 | . 1654 36 1071 Guns 1404 | . 865 . 539 Cannons 245 | . 122 . 123 Explosions 1028 | . 619 . 409 Melee 48 | . 48 . . Ramming 36 | . . 36 . Kinetic 1341 | . 802 . 539 Thermal 308 | . 185 . 123 Explosive 1028 | . 619 . 409 Electromagnetic . | . . . . Impact . | . . . . Slashing 48 | . 48 . . Piercing . | . . . . Highest Corruption . | . . . . Average Corruption . | . . . . Corruption Purged . | . . . . Corruption Blocked . | . . . . Overload Shots . | . . . . Overflow Damage 56 | . 56 . . Projectiles . | . . . . Explosions 28 | . 28 . . Melee 28 | . 28 . . Knockbacks . | . . . . Impact . | . . . . Kinetic . | . . . . Secondary . | . . . . Self-Inflicted Damage 115 | . 115 . . Shots 3 | . 3 . . Rammed 5 | . . 5 . Targets Rammed 5 | . . 5 . Kicked . | . . . . Crushed . | . . . . Highest Temperature 387 | . 387 . . Average Temperature 76 | . 76 . . Received Heat Transfer 330 | . 255 . 75 Effects 3 | . 3 . . Energy Bleed 1 | . 1 . . Short Circuit 2 | . 2 . . Siege Activations . | . . . . Robots Corrupted . | . . . . Combat Hostiles . | . . . . Parts Fried . | . . . . Impact Corruptions . | . . . . Robots Melted . | . . . . Combat Hostiles . | . . . . Parts Melted 2 | . 1 . 1 Heat Transferred 594 | . 372 . 222 Parts Sabotaged . | . . . . Parts Stolen . | . . . . Parts Stripped . | . . . . Power Chain Reactions . | . . . . Missiles Intercepted . | . . . . Alert | -11 -10 -10 -10 ------- Run | Jun Mat Min Sub Peak Influence 398 | . 398 104 . Initial 104 | . . 104 . Average 205 | . 291 55 . Maximum Alert Level 1 | . 1 . . Low Security (%) 42 | . 9 100 . Level 1 57 | . 90 . . Level 2 . | . . . . Level 3 . | . . . . Level 4 . | . . . . Level 5 . | . . . . High Security . | . . . . Max Security . | . . . . Squads Dispatched 5 | . 5 . . Investigation 2 | . 2 . . Extermination . | . . . . Reinforcement 3 | . 3 . . Assault . | . . . . Garrison . | . . . . Intercept . | . . . . Searches Triggered . | . . . . Construction Impeded . | . . . . Haulers Reinforced . | . . . . Active Scanning Responses . | . . . . Cargo Convoy Interrupts . | . . . . Stealth | -11 -10 -10 -10 --------- Run | Jun Mat Min Sub Distress Signals 2 | . 2 . . Communications Jammed . | . . . . Distress Signals . | . . . . Times Spotted 54 | . 32 . 22 Peak Tracking Total 5 | . 4 . 5 Tactical Retreats 4 | . 3 . 1 Traps | -11 -10 -10 -10 ------- Run | Jun Mat Min Sub Traps Triggered 6 | . 4 . 2 Indirectly . | . . . . Trap Hack Attempts . | . . . . Triggered . | . . . . Disarmed . | . . . . Reprogrammed . | . . . . Reused . | . . . . Traps Extracted . | . . . . Installed . | . . . . Triggered . | . . . . Machines | -11 -10 -10 -10 ---------- Run | Jun Mat Min Sub Machines Disabled 3 | . 3 . . Max in Single Turn 2 | . 2 . . Machines Repaired . | . . . . Machines Sabotaged . | . . . . Overloaded Fab Kills . | . . . . Hacking | -11 -10 -10 -10 --------- Run | Jun Mat Min Sub Machines Accessed 5 | . 5 . . Terminals 3 | . 3 . . Fabricators . | . . . . Repair Stations . | . . . . Recycling Units 2 | . 2 . . Scanalyzers . | . . . . Garrison Access . | . . . . Total Hacks 16 | . 16 . . Successful 8 | . 8 . . Failed 8 | . 8 . . Catastrophic . | . . . . Database Lockouts . | . . . . Manual 15 | . 15 . . Terminals 11 | . 11 . . Fabricators . | . . . . Repair Stations . | . . . . Recycling Units 5 | . 5 . . Scanalyzers . | . . . . Garrison Access . | . . . . Terminal Hacks 1 | . 1 . . Locate Traps 1 | . 1 . . Fabricator Hacks . | . . . . Repair Station Hacks . | . . . . Recycling Unit Hacks 1 | . 1 . . Retrieve Components 1 | . 1 . . Scanalyzer . | . . . . Garrison Access Hacks . | . . . . Unauthorized Hacks 6 | . 6 . . Terminals 4 | . 4 . . Track 1 | . 1 . . Botnet 3 | . 3 . . Fabricators . | . . . . Repair Stations . | . . . . Recycling Units 2 | . 2 . . Tunnel 2 | . 2 . . Scanalyzers . | . . . . Garrison Access . | . . . . Data Cores Recovered . | . . . . Used . | . . . . Hacking Detections 5 | . 5 . . Full Trace Events . | . . . . Feedback Events . | . . . . Feedback Blocked . | . . . . Robot Schematics Acquired . | . . . . Robots Built . | . . . . Authchips . | . . . . Time . | . . . . Total Robot Build Rating . | . . . . Part Schematics Acquired . | . . . . Parts Built . | . . . . Authchips . | . . . . Time . | . . . . Total Part Build Rating . | . . . . Parts Repaired . | . . . . Time . | . . . . Parts Recycled . | . . . . Recycled Matter . | . . . . Retrieved Matter . | . . . . Retrieved Components 3 | . 3 . . Parts Scanalyzed . | . . . . Part Schematics Acquired . | . . . . Parts Damaged . | . . . . Bothacking | -11 -10 -10 -10 ------------ Run | Jun Mat Min Sub Used RIF Installer . | . . . . Robots Hacked . | . . . . Non-combat . | . . . . Combat . | . . . . Robot Hacks Applied . | . . . . Relay Couplers Released . | . . . . Fabnet Peak Effective % . | . . . . Robots Rewired . | . . . . Allies Hacked . | . . . . Hacks Repelled . | . . . . Allies | -11 -10 -10 -10 -------- Run | Jun Mat Min Sub Total Allies . | . . . . Largest Group . | . . . . Highest-Rated Group . | . . . . Highest-Rated Ally . | . . . . Total Orders . | . . . . Ally Attacks . | . . . . Total Damage . | . . . . Kills . | . . . . Allies Corrupted . | . . . . Allies Melted . | . . . . Intel | -11 -10 -10 -10 ------- Run | Jun Mat Min Sub Robot Analysis Total . | . . . . Derelict Logs Recovered 3 | . . 1 2 Drone Launches . | . . . . Drone Recoveries . | . . . . Exploration | -11 -10 -10 -10 ------------- Run | Jun Mat Min Sub Turns Passed 3228 | . 1311 754 1163 Spaces Moved 1654 | 1 587 466 600 Core . | . . . . Treads 1489 | . 488 466 535 Legs 100 | 1 99 . . Wheels 65 | . . . 65 Hover . | . . . . Flight . | . . . . Fastest Speed 120 | 120 120 160 135 Average Speed 164 | 120 163 160 167 Slowest Speed 240 | 120 240 160 240 Overloaded Moves . | . . . . Propulsion Burnouts . | . . . . Robots Hopped . | . . . . Cave-ins Triggered . | . . . . Exploration Rate (%) 63 | 2 97 98 55 Regions Visited 3 Branch Regions 2 Pre-discovered Areas 3 | . 2 1 . Known Exits Taken . | . . . . Unknown Exits Taken 3 | 1 1 1 . Scrap Searched 11 | . . 2 9 Spaces Dug 4 | . 4 . . Terrain Destroyed 42 | . 35 . 7 Melee 4 | . 4 . . Projectile . | . . . . AOE 38 | . 31 . 7 Terrain Rammed . | . . . . Walls Destroyed . | . . . . Machines Disabled . | . . . . Actions | -11 -10 -10 -10 --------- Run | Jun Mat Min Sub Total 1936 | . 784 472 680 Wait 52 | . 36 . 16 Move 1651 | . 586 465 600 Hop . | . . . . Pick Up 29 | . 25 1 3 Fast Attach 15 | . 10 . 5 Attach 13 | . 11 . 2 Detach 3 | . 3 . . Swap 15 | . 10 . 5 Drop 26 | . 16 1 9 Fire 116 | . 76 . 40 Melee 10 | . 10 . . Ram . | . . . . Kick . | . . . . Crush 5 | . . 5 . Escape Stasis . | . . . . Rewire 1 | . 1 . . Trap . | . . . . Miscellaneous . | . . . . Route ------- -11/Junkyard -10/Materials (discovered 5 exits: *Mat x3 / [*Min x2]) -10/Mines (discovered 3 exits: *Mat x2 / [*Sub]) -10/Subcaves (discovered 1 exit: Mat) History --------- Turn | Location | Event 1 | -11/Junkyard | Discovered new exit (range 0) 1 | -11/Junkyard | Entered Materials 310 | -10/Materials | Discovered new exit (range 8) 316 | -10/Materials | Build established: Mutant 459 | -10/Materials | Discovered new exit (range 16) 737 | -10/Materials | Discovered new exit (range 15) 845 | -10/Materials | Discovered new exit (range 8) 895 | -10/Materials | Core integrity fell below 50% 900 | -10/Materials | Derelicts attacked the area 1080 | -10/Materials | Discovered new exit (range 6) 1312 | -10/Materials | Entered Mines 1348 | -10/Mines | Discovered new exit (range 10) 1546 | -10/Mines | Discovered new exit (range 11) 1708 | -10/Mines | Found a damaged Exp. Sensor Array with a note attached 1711 | -10/Mines | Found Prototype Device 1848 | -10/Mines | Discovered new exit (range 9) 2066 | -10/Mines | Entered Subcaves 2151 | -10/Subcaves | Ambushed by swarm of Subdwellers 2292 | -10/Subcaves | A swath of the cavern ceiling suddenly collapsed 2393 | -10/Subcaves | Shifting Twisted Machinery released Flamer 2482 | -10/Subcaves | Core integrity fell below 20% 2523 | -10/Subcaves | Build established: Subdweller-Mutant 2681 | -10/Subcaves | Identified exit to Materials 2805 | -10/Subcaves | A swath of the cavern ceiling suddenly collapsed 2963 | -10/Subcaves | Learned 8 Materials zone layouts 3026 | -10/Subcaves | Shifting Twisted Machinery released Sub. Beam Cannon 3028 | -10/Subcaves | Shifting Twisted Machinery released Riot Gun 3051 | -10/Subcaves | Shifting Twisted Machinery released Sub. Machine Gun 3229 | -10/Subcaves | Destroyed by NI-C7L(R) with Subdweller Laser Last Messages --------------- 02927_ Sub. Laser melted. 02927_ LV-YFK(R) destroyed. 02931_ BU-4A3(u) builds Twisted Machinery. 02932_ HV Slug penetrates LW-CWX(R). 02932_ LW-CWX(R) suffers critical hit (Destroy). 02932_ LW-CWX(R) destroyed. 02937_ BU-4A3(u) cries out in pain. 02937_ BU-4A3(u) destroyed. 02940_ 9K-BF6(R) angrily emerges from the Twisted Machinery. 02940_ 9K-BF6(R): "OHNO!" 02948_ 9K-BF6(R) suffers critical hit (Destroy). 02948_ 9K-BF6(R) destroyed. 02963_ Acquired derelict log, extracted data. Data stored: Materials zone layouts (x8). Sub. Beam Cannon falls loose from the Twisted Machinery. Riot Gun falls loose from the Twisted Machinery. Sub. Machine Gun falls loose from the Twisted Machinery. 03167_ AJ-BHZ(h) destroyed. 03200_ Triggered Piercing Trap. 03200_ Spikes shoot up from the floor. Map ----- +----------------------------------------------------+ | ??????????????????????# ### #?##" ## | | ??????????????????????# #?# ### [ #?# | | ??????????????????????# #?## # # #??# | | ??????????????????????## ##?# #??# | | ????????????????????### #?# #?## | | ???????????????????## ### ### | | ???????????????????# ###### | | ??????????????????## ###????# | | ?????????????????## #??????## #### | | ????????????????## #???????# #??# | | ???????????????## ##???????# ### | | ???????????###?# ###????????## "" ] | | ???????????#" ##" ##???????????# """ | | ?????????????# ##????????????# ##[ """ | | ?????????????##"# ##????????????#####"""" | | ??????????????### #????????????????#"""" | | ???????????????# #????????????????? # | | ???????????????### #??????????????????? ? | | ?????????????????# R ##???????????????????? | | ?????????????????# " #???????????????????? | | ?????????????????##%"##???????????????????? | | ?????????????????## "#????????????????????? | | ?????????????????# "###" ""??????????????? | | ????????????????## "u "" ""??????????????? | | ???????????????## "" ""??????????????? | | ???????????????# @####"" ""??????????????? | | ???????????????# ##???#####??????????????? | | ???????????????# ##??????????????????????? | | ??????????????## ##?????????????????????? | | ??????????????# ###???????????????????? | | ??????????????# ##??????????????????? | | ??????????????# #??????????????????? | | ??????????????# ## #??????????????????? | | ??????????????#### #??????????????????? | | ????????????????# # ##??????????????????? | | ????????????????# ###???????????????????? | | ????????????????## ##????????????????????? | | ?????????????????# #????????????????????? | | ????????????????## #????????????????????? | | ????????????????# #????????????????????? | | ????????????????# #????????????????????? | | ???????????????## #????????????????????? | | ???????????????# #????????????????????? | | ??????????????## #????????????????????? | | ??????????????# ##????????????????????? | | ??????????????# ###?????????????????????? | | ??????????????## ##???????????????????????? | | ???????????????###????????????????????????? | | ??????????????????????????????????????????? | | ??????????????????????????????????????????? | +----------------------------------------------------+ Best States ------------- Heat Dissipation 39 Energy Generation 15 Energy Capacity 250 Matter Stores 321 Matter Capacity 500 Sight Range 16 Terrain Scan Density 10 Armor Coverage 150 Core Shielding 20 Evasion (%) 55 Recoil Reduction 2 Item Schematics ----------------- None Robot Schematics ------------------ None Fabricated ------------ Nothing Alien Tech Used ----------------- None Achievements -------------- None Challenges ------------ None Game ------ Seed BiometalCombatStorage Manual? 0 Play Time 00:19:10 Cumulative 366.4 hours Start 2023.06.25 @ 20:37:28 End 2023.06.26 @ 00:51:15 Sessions 3 Manual Loads 0 Difficulty Rogue Special Mode None Game No. 529 Rogue 502 Adventurer 4 Explorer 23 Win Type - Total 20 Types 14/0/2/2/1/0/0/1/0 Lore% 78 Gallery% 90 Achievement% 83 Wizard Run 0 Options --------- ASCII 0 Keyboard 1 Movement Numpad Keybinds 0 Fullscreen 1 Font 18/SmallcapsGlow Map View 76x50 Tactical HUD 1 Map Filters NONE Filters NONE Steam 1 RUN: 55f2321e-eca7-44a4-8614-a4e455b8fa1b